[Event "Late-Titled-Tuesday-Blitz-May-07-2024"]
[Site "Chess.com"]
[Date "2024.05.07"]
[Round "3"]
[White "Indefatigable11"]
[Black "koziororo"]
[Result "1-0"]
[WhiteElo "2400"]
[BlackElo "2588"]
[TimeControl "180+1"]
[EndTime "14:28:57 PDT"]
[Termination "Indefatigable11 won by resignation"]

1. d4 {[%clk 0:02:57]} 1... Nf6 {[%clk 0:02:57.5]} 2. c4 {[%clk 0:02:57]} 2...
e5 {[%clk 0:02:58]} 3. dxe5 {[%clk 0:02:56.2]} 3... Ng4 {[%clk 0:02:58.7]} 4.
Nf3 {[%clk 0:02:56.4]} 4... Bc5 {[%clk 0:02:59.1]} 5. e3 {[%clk 0:02:56.4]} 5...
Nc6 {[%clk 0:02:59.7]} 6. Nc3 {[%clk 0:02:56.2]} 6... Ngxe5 {[%clk 0:03:00.3]}
7. Be2 {[%clk 0:02:56.2]} 7... O-O {[%clk 0:02:59.2]} 8. O-O {[%clk 0:02:55.8]}
8... a5 {[%clk 0:02:59.4]} 9. b3 {[%clk 0:02:54]} 9... Re8 {[%clk 0:02:57.2]}
10. Bb2 {[%clk 0:02:53.6]} 10... Nxf3+ {[%clk 0:02:56.6]} 11. Bxf3 {[%clk
0:02:54.4]} 11... Ne5 {[%clk 0:02:57.4]} 12. Be2 {[%clk 0:02:54.6]} 12... Ra6
{[%clk 0:02:57.6]} 13. Nd5 {[%clk 0:02:54]} 13... Rh6 {[%clk 0:02:53.8]} 14. f4
{[%clk 0:02:38.9]} 14... c6 {[%clk 0:02:38.1]} 15. Bxe5 {[%clk 0:02:06.5]} 15...
cxd5 {[%clk 0:02:31.3]} 16. Rf3 {[%clk 0:01:54.1]} 16... d6 {[%clk 0:02:27.2]}
17. Bd4 {[%clk 0:01:51.9]} 17... Bg4 {[%clk 0:02:24.1]} 18. Rf2 {[%clk
0:01:43.6]} 18... Bxe2 {[%clk 0:02:00.5]} 19. Rxe2 {[%clk 0:01:43.3]} 19... dxc4
{[%clk 0:01:57.8]} 20. bxc4 {[%clk 0:01:38]} 20... Re4 {[%clk 0:01:47.8]} 21.
Bxc5 {[%clk 0:01:31.7]} 21... Rxc4 {[%clk 0:01:23.5]} 22. Bd4 {[%clk 0:01:29.1]}
22... d5 {[%clk 0:01:23.1]} 23. Rc1 {[%clk 0:01:22.3]} 23... b5 {[%clk
0:01:14.5]} 24. Rec2 {[%clk 0:01:06.7]} 24... Rhc6 {[%clk 0:01:10.5]} 25. Rxc4
{[%clk 0:00:42.4]} 25... Rxc4 {[%clk 0:01:01.8]} 26. Rxc4 {[%clk 0:00:40.1]}
26... dxc4 {[%clk 0:01:02.7]} 27. Qg4 {[%clk 0:00:39.2]} 27... Qf8 {[%clk
0:00:56.5]} 28. Qf5 {[%clk 0:00:25.1]} 28... Qe8 {[%clk 0:00:54.9]} 29. Qg5
{[%clk 0:00:20.2]} 29... f6 {[%clk 0:00:53.5]} 30. Qd5+ {[%clk 0:00:19.8]} 30...
Kh8 {[%clk 0:00:53.4]} 31. Kf2 {[%clk 0:00:19.6]} 31... h6 {[%clk 0:00:47.7]}
32. g4 {[%clk 0:00:19.4]} 32... Qg6 {[%clk 0:00:46.1]} 33. h3 {[%clk 0:00:19]}
33... Qc2+ {[%clk 0:00:45.3]} 34. Kg3 {[%clk 0:00:18.6]} 34... c3 {[%clk
0:00:41.4]} 35. g5 {[%clk 0:00:18.7]} 35... hxg5 {[%clk 0:00:39.7]} 36. fxg5
{[%clk 0:00:19]} 36... b4 {[%clk 0:00:37]} 37. gxf6 {[%clk 0:00:17.3]} 37...
Qg6+ {[%clk 0:00:37.5]} 38. Kf3 {[%clk 0:00:16.5]} 38... gxf6 {[%clk 0:00:38.4]}
39. Qd8+ {[%clk 0:00:15.8]} 39... Kg7 {[%clk 0:00:33.7]} 40. Qe7+ {[%clk
0:00:15.5]} 40... Kg8 {[%clk 0:00:11.7]} 41. Qxf6 {[%clk 0:00:15]} 41... Qg1
{[%clk 0:00:10.9]} 42. Qh8+ {[%clk 0:00:14.2]} 42... Kf7 {[%clk 0:00:10.7]} 43.
Qh7+ {[%clk 0:00:13.4]} 43... Ke6 {[%clk 0:00:09.5]} 44. Qe4+ {[%clk 0:00:13.1]}
44... Kf7 {[%clk 0:00:06.2]} 45. Qf5+ {[%clk 0:00:13.2]} 45... Ke8 {[%clk
0:00:05.3]} 46. Qe6+ {[%clk 0:00:12.8]} 46... Kf8 {[%clk 0:00:06]} 47. Bc5+
{[%clk 0:00:08.9]} 47... Kg7 {[%clk 0:00:06.5]} 48. Bd4+ {[%clk 0:00:09.3]}
48... Kf8 {[%clk 0:00:06.1]} 49. Qf6+ {[%clk 0:00:09.7]} 49... Kg8 {[%clk
0:00:06.7]} 50. Qd8+ {[%clk 0:00:07.4]} 50... Kf7 {[%clk 0:00:06.7]} 51. Qxa5
{[%clk 0:00:07]} 51... Qf1+ {[%clk 0:00:05.8]} 52. Ke4 {[%clk 0:00:06.9]} 52...
Qb1+ {[%clk 0:00:06.2]} 53. Ke5 {[%clk 0:00:05.9]} 53... Qf5+ {[%clk 0:00:06.8]}
54. Kxf5 {[%clk 0:00:05.8]} 1-0

[Event "Late-Titled-Tuesday-Blitz-May-07-2024"]
[Site "Chess.com"]
[Date "2024.05.07"]
[Round "3"]
[White "honestgames"]
[Black "BogdanDeac"]
[Result "0-1"]
[WhiteElo "2825"]
[BlackElo "3125"]
[TimeControl "180+1"]
[EndTime "14:28:59 PDT"]
[Termination "BogdanDeac won by resignation"]

1. d4 {[%clk 0:03:00.9]} 1... Nf6 {[%clk 0:02:59]} 2. c4 {[%clk 0:03:01]} 2...
g6 {[%clk 0:02:59.3]} 3. Nc3 {[%clk 0:03:00.4]} 3... Bg7 {[%clk 0:02:59.6]} 4.
e4 {[%clk 0:03:00.2]} 4... d6 {[%clk 0:03:00.2]} 5. Be2 {[%clk 0:03:00.4]} 5...
Nc6 {[%clk 0:02:58.6]} 6. d5 {[%clk 0:02:57.9]} 6... Ne5 {[%clk 0:02:57.1]} 7.
h3 {[%clk 0:02:58.5]} 7... O-O {[%clk 0:02:48.3]} 8. Nf3 {[%clk 0:02:58.2]} 8...
Nxf3+ {[%clk 0:02:48]} 9. Bxf3 {[%clk 0:02:59.1]} 9... e6 {[%clk 0:02:48.2]} 10.
O-O {[%clk 0:02:58.8]} 10... Re8 {[%clk 0:02:47.8]} 11. Be3 {[%clk 0:02:55.4]}
11... Nd7 {[%clk 0:02:47.8]} 12. Qd2 {[%clk 0:02:54.2]} 12... a5 {[%clk
0:02:35.1]} 13. Rae1 {[%clk 0:02:32.5]} 13... exd5 {[%clk 0:01:26.6]} 14. cxd5
{[%clk 0:02:24.6]} 14... Nc5 {[%clk 0:01:24]} 15. Bd4 {[%clk 0:02:15.3]} 15...
Bd7 {[%clk 0:01:21.3]} 16. Bd1 {[%clk 0:01:53.3]} 16... b5 {[%clk 0:01:13.1]}
17. Bxg7 {[%clk 0:01:20.3]} 17... Kxg7 {[%clk 0:01:11.7]} 18. f3 {[%clk
0:00:55]} 18... b4 {[%clk 0:01:05.6]} 19. Nb1 {[%clk 0:00:51.6]} 19... Qh4
{[%clk 0:00:54.7]} 20. Bc2 {[%clk 0:00:44.7]} 20... Re7 {[%clk 0:00:42.3]} 21.
Qd4+ {[%clk 0:00:38.1]} 21... Kg8 {[%clk 0:00:41.5]} 22. Nd2 {[%clk 0:00:34.2]}
22... Qf4 {[%clk 0:00:31.5]} 23. Nb3 {[%clk 0:00:24.9]} 23... Nxb3 {[%clk
0:00:24.9]} 24. axb3 {[%clk 0:00:23.9]} 24... Bxh3 {[%clk 0:00:24.4]} 25. Rf2
{[%clk 0:00:10.4]} 25... Bd7 {[%clk 0:00:20.5]} 26. Qc4 {[%clk 0:00:08.9]} 26...
Rc8 {[%clk 0:00:13.9]} 27. Ra1 {[%clk 0:00:08.2]} 27... c6 {[%clk 0:00:09.1]}
28. dxc6 {[%clk 0:00:05.1]} 28... Rxc6 {[%clk 0:00:08.5]} 29. Qd4 {[%clk
0:00:05.5]} 29... Qe5 {[%clk 0:00:07.8]} 30. Qxe5 {[%clk 0:00:04.4]} 30... Rxe5
{[%clk 0:00:08.2]} 31. Rd2 {[%clk 0:00:04.9]} 31... Be6 {[%clk 0:00:07.7]} 32.
Bd1 {[%clk 0:00:05]} 32... Rec5 {[%clk 0:00:07.5]} 33. Kf2 {[%clk 0:00:04.4]}
33... h5 {[%clk 0:00:07.6]} 34. Ke3 {[%clk 0:00:04.2]} 34... h4 {[%clk
0:00:07.5]} 35. Kd4 {[%clk 0:00:04]} 35... Kf8 {[%clk 0:00:07.3]} 36. Rb1 {[%clk
0:00:02.6]} 36... g5 {[%clk 0:00:07.2]} 37. Ra1 {[%clk 0:00:02.9]} 37... Ke7
{[%clk 0:00:06.9]} 38. Ke3 {[%clk 0:00:03.4]} 38... Kf6 {[%clk 0:00:06.7]} 39.
Rd3 {[%clk 0:00:03.8]} 39... Ke5 {[%clk 0:00:06.7]} 40. Rb1 {[%clk 0:00:02.8]}
40... Rc1 {[%clk 0:00:06]} 41. Rxc1 {[%clk 0:00:02.9]} 41... Rxc1 {[%clk
0:00:06.2]} 42. Kd2 {[%clk 0:00:03.3]} 42... Rc5 {[%clk 0:00:05.9]} 43. Be2
{[%clk 0:00:02.8]} 43... f5 {[%clk 0:00:04.9]} 44. exf5 {[%clk 0:00:02.3]} 44...
Bxf5 {[%clk 0:00:05.8]} 45. Re3+ {[%clk 0:00:03]} 45... Kf4 {[%clk 0:00:06.4]}
46. Re7 {[%clk 0:00:02.4]} 46... Rc2+ {[%clk 0:00:06.3]} 47. Ke1 {[%clk
0:00:02]} 47... Rxb2 {[%clk 0:00:06.8]} 48. Kf2 {[%clk 0:00:02.4]} 48... Bd3
{[%clk 0:00:06.2]} 49. Kg1 {[%clk 0:00:02.6]} 49... Rxe2 {[%clk 0:00:05.9]} 0-1

[Event "Late-Titled-Tuesday-Blitz-May-07-2024"]
[Site "Chess.com"]
[Date "2024.05.07"]
[Round "3"]
[White "ansko1999"]
[Black "czasnaszachy"]
[Result "1-0"]
[WhiteElo "2664"]
[BlackElo "2453"]
[TimeControl "180+1"]
[EndTime "14:28:59 PDT"]
[Termination "ansko1999 won on time"]

1. Nc3 {[%clk 0:03:00.9]} 1... c5 {[%clk 0:02:56.4]} 2. e4 {[%clk 0:03:00.8]}
2... a6 {[%clk 0:02:55.5]} 3. g3 {[%clk 0:03:00.2]} 3... b5 {[%clk 0:02:55.3]}
4. Bg2 {[%clk 0:02:59.1]} 4... Bb7 {[%clk 0:02:55.4]} 5. d3 {[%clk 0:02:57.3]}
5... e6 {[%clk 0:02:55.4]} 6. Nh3 {[%clk 0:02:57.3]} 6... b4 {[%clk 0:02:54.2]}
7. Ne2 {[%clk 0:02:56.1]} 7... d5 {[%clk 0:02:54.5]} 8. O-O {[%clk 0:02:55.4]}
8... Nf6 {[%clk 0:02:53.8]} 9. e5 {[%clk 0:02:55]} 9... Nfd7 {[%clk 0:02:53.1]}
10. f4 {[%clk 0:02:55.7]} 10... Nc6 {[%clk 0:02:41.7]} 11. f5 {[%clk 0:02:54.6]}
11... Ndxe5 {[%clk 0:02:32.9]} 12. fxe6 {[%clk 0:02:53.6]} 12... fxe6 {[%clk
0:02:33]} 13. Ng5 {[%clk 0:02:51.3]} 13... Qd7 {[%clk 0:02:24.3]} 14. Nf4 {[%clk
0:02:49.7]} 14... O-O-O {[%clk 0:02:02.4]} 15. Ngxe6 {[%clk 0:02:41.1]} 15...
Kb8 {[%clk 0:01:48.4]} 16. Nxd8 {[%clk 0:02:36.8]} 16... Nxd8 {[%clk 0:01:48]}
17. d4 {[%clk 0:02:23.2]} 17... Ng4 {[%clk 0:01:40.8]} 18. Bh3 {[%clk 0:02:08]}
18... Bc8 {[%clk 0:01:40.9]} 19. Bxg4 {[%clk 0:01:58.4]} 19... Qxg4 {[%clk
0:01:40.4]} 20. Qxg4 {[%clk 0:01:59.3]} 20... Bxg4 {[%clk 0:01:40.3]} 21. Nxd5
{[%clk 0:01:57.6]} 21... cxd4 {[%clk 0:01:38.5]} 22. Bf4+ {[%clk 0:01:57.8]}
22... Kb7 {[%clk 0:01:35.4]} 23. c4 {[%clk 0:01:38.4]} 23... Bc5 {[%clk
0:01:25.2]} 24. Rae1 {[%clk 0:01:31.6]} 24... d3+ {[%clk 0:01:22]} 25. Be3
{[%clk 0:01:29.1]} 25... d2 {[%clk 0:01:00.7]} 26. Bxc5 {[%clk 0:01:14.7]} 26...
dxe1=Q {[%clk 0:01:00.5]} 27. Rxe1 {[%clk 0:01:15]} 27... Nc6 {[%clk 0:00:55.5]}
28. Nxb4 {[%clk 0:01:06.2]} 28... Nxb4 {[%clk 0:00:53.9]} 29. Re7+ {[%clk
0:01:00.6]} 29... Kc6 {[%clk 0:00:42.7]} 30. Bxb4 {[%clk 0:01:00.3]} 30... Rd8
{[%clk 0:00:36.6]} 31. Rxg7 {[%clk 0:00:53.9]} 31... Rd1+ {[%clk 0:00:35.1]} 32.
Kf2 {[%clk 0:00:53.6]} 32... h5 {[%clk 0:00:30.9]} 33. Rg6+ {[%clk 0:00:53.9]}
33... Kb7 {[%clk 0:00:29.6]} 34. Rg7+ {[%clk 0:00:48.7]} 34... Kc6 {[%clk
0:00:29]} 35. Bc3 {[%clk 0:00:27.4]} 35... Rh1 {[%clk 0:00:16]} 36. h4 {[%clk
0:00:23.9]} 36... Ra1 {[%clk 0:00:14.4]} 37. a3 {[%clk 0:00:23.1]} 37... Rh1
{[%clk 0:00:10.2]} 38. Ke3 {[%clk 0:00:21]} 38... Rg1 {[%clk 0:00:09.1]} 39. Kf4
{[%clk 0:00:20.2]} 39... Rf1+ {[%clk 0:00:09.4]} 40. Kg5 {[%clk 0:00:19.7]}
40... Rf5+ {[%clk 0:00:08.3]} 41. Kh6 {[%clk 0:00:18.3]} 41... Kc5 {[%clk
0:00:07.6]} 42. Rc7+ {[%clk 0:00:17.4]} 42... Kb6 {[%clk 0:00:06.5]} 43. Rg7
{[%clk 0:00:10.7]} 43... Rf3 {[%clk 0:00:05.7]} 44. Be5 {[%clk 0:00:07.8]} 44...
Kc5 {[%clk 0:00:04.5]} 45. Rc7+ {[%clk 0:00:07.7]} 45... Kb6 {[%clk 0:00:04]}
46. c5+ {[%clk 0:00:05.8]} 46... Kb5 {[%clk 0:00:02.7]} 47. Rb7+ {[%clk
0:00:03.7]} 47... Kc6 {[%clk 0:00:02.1]} 48. Rc7+ {[%clk 0:00:04.3]} 48... Kd5
{[%clk 0:00:02.4]} 49. Bd6 {[%clk 0:00:04.2]} 1-0

[Event "Late-Titled-Tuesday-Blitz-May-07-2024"]
[Site "Chess.com"]
[Date "2024.05.07"]
[Round "3"]
[White "Genghis_K"]
[Black "SRob2003"]
[Result "0-1"]
[WhiteElo "2943"]
[BlackElo "2680"]
[TimeControl "180+1"]
[EndTime "14:29:01 PDT"]
[Termination "SRob2003 won by checkmate"]

1. e4 {[%clk 0:02:41.7]} 1... c5 {[%clk 0:02:59.7]} 2. Nf3 {[%clk 0:02:41.4]}
2... Nc6 {[%clk 0:03:00.4]} 3. Bb5 {[%clk 0:02:41]} 3... g6 {[%clk 0:03:00.6]}
4. O-O {[%clk 0:02:40.6]} 4... Bg7 {[%clk 0:03:00.6]} 5. c3 {[%clk 0:02:40.9]}
5... Nf6 {[%clk 0:03:00.6]} 6. Re1 {[%clk 0:02:41.7]} 6... O-O {[%clk
0:02:58.3]} 7. d4 {[%clk 0:02:41.3]} 7... d5 {[%clk 0:02:59]} 8. e5 {[%clk
0:02:41.1]} 8... Ne4 {[%clk 0:02:58.9]} 9. Bxc6 {[%clk 0:02:41.9]} 9... bxc6
{[%clk 0:02:59]} 10. Be3 {[%clk 0:02:42.6]} 10... Rb8 {[%clk 0:02:59.4]} 11. Qc1
{[%clk 0:02:36.6]} 11... cxd4 {[%clk 0:02:32.8]} 12. cxd4 {[%clk 0:02:36.4]}
12... f6 {[%clk 0:02:33.4]} 13. Nbd2 {[%clk 0:02:19.2]} 13... Bf5 {[%clk
0:02:24.4]} 14. exf6 {[%clk 0:02:16.1]} 14... exf6 {[%clk 0:02:21.5]} 15. Nxe4
{[%clk 0:02:14]} 15... dxe4 {[%clk 0:01:54]} 16. Nd2 {[%clk 0:02:11.5]} 16...
Qd5 {[%clk 0:01:42.9]} 17. Qc2 {[%clk 0:02:02.8]} 17... Rfe8 {[%clk 0:01:39.6]}
18. b3 {[%clk 0:02:00.8]} 18... Bd7 {[%clk 0:01:39.5]} 19. Nc4 {[%clk
0:01:55.7]} 19... Rbc8 {[%clk 0:01:30.5]} 20. Bf4 {[%clk 0:01:54.1]} 20... Re6
{[%clk 0:01:18.6]} 21. Rad1 {[%clk 0:01:50]} 21... Be8 {[%clk 0:01:05.7]} 22.
Ne3 {[%clk 0:01:44.1]} 22... Qa5 {[%clk 0:00:58.5]} 23. d5 {[%clk 0:01:42.2]}
23... Re7 {[%clk 0:00:55.4]} 24. d6 {[%clk 0:01:39.4]} 24... Rd7 {[%clk
0:00:53.3]} 25. Nc4 {[%clk 0:01:34.9]} 25... Qf5 {[%clk 0:00:52.8]} 26. Qxe4
{[%clk 0:01:31.3]} 26... Qxe4 {[%clk 0:00:49.9]} 27. Rxe4 {[%clk 0:01:32]} 27...
Bf7 {[%clk 0:00:50.8]} 28. Re7 {[%clk 0:01:27.5]} 28... Rcd8 {[%clk 0:00:47.8]}
29. Rxd7 {[%clk 0:01:25.6]} 29... Rxd7 {[%clk 0:00:48.1]} 30. Na5 {[%clk
0:01:26.4]} 30... Bd5 {[%clk 0:00:46.6]} 31. Rc1 {[%clk 0:01:22.8]} 31... g5
{[%clk 0:00:44.3]} 32. Bg3 {[%clk 0:01:20.2]} 32... f5 {[%clk 0:00:44.8]} 33. h4
{[%clk 0:01:03.8]} 33... f4 {[%clk 0:00:35.1]} 34. Bh2 {[%clk 0:01:03.6]} 34...
h6 {[%clk 0:00:36]} 35. hxg5 {[%clk 0:01:03.7]} 35... hxg5 {[%clk 0:00:36.9]}
36. Nxc6 {[%clk 0:01:03.2]} 36... Rxd6 {[%clk 0:00:37.5]} 37. Nxa7 {[%clk
0:00:52.2]} 37... Ra6 {[%clk 0:00:37.3]} 38. Nc8 {[%clk 0:00:51.1]} 38... Be6
{[%clk 0:00:31]} 39. Ne7+ {[%clk 0:00:48.4]} 39... Kf7 {[%clk 0:00:19.5]} 40.
Nc6 {[%clk 0:00:48.8]} 40... Rxa2 {[%clk 0:00:18.4]} 41. Nd8+ {[%clk 0:00:48.9]}
41... Ke7 {[%clk 0:00:18.6]} 42. Nxe6 {[%clk 0:00:49.5]} 42... Kxe6 {[%clk
0:00:19.5]} 43. Rb1 {[%clk 0:00:49.7]} 43... Bd4 {[%clk 0:00:17.1]} 44. Kh1
{[%clk 0:00:50.1]} 44... Bxf2 {[%clk 0:00:15.6]} 45. b4 {[%clk 0:00:44.7]} 45...
g4 {[%clk 0:00:15.6]} 46. b5 {[%clk 0:00:43.4]} 46... g3 {[%clk 0:00:15.7]} 47.
b6 {[%clk 0:00:38.5]} 47... Ra8 {[%clk 0:00:14.2]} 48. b7 {[%clk 0:00:01.9]}
48... Rh8 {[%clk 0:00:13.4]} 49. Re1+ {[%clk 0:00:02.8]} 49... Bxe1 {[%clk
0:00:09.1]} 50. b8=Q {[%clk 0:00:03.7]} 50... Rxb8 {[%clk 0:00:07.5]} 51. Bxg3
{[%clk 0:00:04.1]} 51... fxg3 {[%clk 0:00:07.2]} 52. Kg1 {[%clk 0:00:05]} 52...
Rf8 {[%clk 0:00:06.7]} 53. Kh1 {[%clk 0:00:04.1]} 53... Rf1# {[%clk 0:00:07.6]}
0-1

[Event "Late-Titled-Tuesday-Blitz-May-07-2024"]
[Site "Chess.com"]
[Date "2024.05.07"]
[Round "3"]
[White "stollenmonster"]
[Black "ubdip"]
[Result "1-0"]
[WhiteElo "2863"]
[BlackElo "2520"]
[TimeControl "180+1"]
[EndTime "14:29:03 PDT"]
[Termination "stollenmonster won on time"]

1. e4 {[%clk 0:03:00.9]} 1... c5 {[%clk 0:02:57.3]} 2. Nf3 {[%clk 0:03:00.7]}
2... Nc6 {[%clk 0:02:57.4]} 3. Nc3 {[%clk 0:03:00.5]} 3... e6 {[%clk 0:02:54.4]}
4. d4 {[%clk 0:02:57]} 4... cxd4 {[%clk 0:02:55.3]} 5. Nxd4 {[%clk 0:02:57.5]}
5... Qb6 {[%clk 0:02:55.2]} 6. Nb3 {[%clk 0:02:57.2]} 6... Nf6 {[%clk
0:02:55.1]} 7. Be3 {[%clk 0:02:57.3]} 7... Qc7 {[%clk 0:02:55.5]} 8. g3 {[%clk
0:02:55]} 8... a6 {[%clk 0:02:51.8]} 9. Bg2 {[%clk 0:02:55.3]} 9... b5 {[%clk
0:02:51.1]} 10. O-O {[%clk 0:02:52.7]} 10... Bb7 {[%clk 0:02:51.1]} 11. Re1
{[%clk 0:02:49.9]} 11... Be7 {[%clk 0:02:48.5]} 12. Nd5 {[%clk 0:02:06]} 12...
exd5 {[%clk 0:01:25.6]} 13. exd5 {[%clk 0:02:06.9]} 13... Nxd5 {[%clk
0:01:25.6]} 14. Qxd5 {[%clk 0:01:59.4]} 14... O-O {[%clk 0:01:25.2]} 15. Bf4
{[%clk 0:01:57.1]} 15... d6 {[%clk 0:01:10]} 16. Rxe7 {[%clk 0:01:55.5]} 16...
Qxe7 {[%clk 0:01:07.6]} 17. Bxd6 {[%clk 0:01:55.8]} 17... Qe2 {[%clk 0:01:04.3]}
18. Bxf8 {[%clk 0:01:52.4]} 18... Rxf8 {[%clk 0:01:00.6]} 19. Nc5 {[%clk
0:01:44]} 19... Ba8 {[%clk 0:00:56.4]} 20. Qd1 {[%clk 0:01:30.3]} 20... Qc4
{[%clk 0:00:49.9]} 21. Nb3 {[%clk 0:01:04.8]} 21... Rd8 {[%clk 0:00:35.4]} 22.
Qf1 {[%clk 0:01:04.1]} 22... Qxf1+ {[%clk 0:00:15.7]} 23. Kxf1 {[%clk 0:01:05]}
23... Nb4 {[%clk 0:00:16]} 24. Bxa8 {[%clk 0:01:03.7]} 24... Rxa8 {[%clk
0:00:16.9]} 25. c3 {[%clk 0:01:03.9]} 25... Nd3 {[%clk 0:00:17]} 26. Rb1 {[%clk
0:01:01.9]} 26... Re8 {[%clk 0:00:16.2]} 27. Nd4 {[%clk 0:01:01.7]} 27... g6
{[%clk 0:00:15]} 28. b3 {[%clk 0:01:00.8]} 28... Kg7 {[%clk 0:00:14.2]} 29. Rd1
{[%clk 0:01:00.3]} 29... Nc5 {[%clk 0:00:14.6]} 30. Re1 {[%clk 0:00:55.9]} 30...
Rc8 {[%clk 0:00:13.7]} 31. Re7 {[%clk 0:00:54.1]} 31... Kf6 {[%clk 0:00:12.6]}
32. Re3 {[%clk 0:00:53.9]} 32... Nd7 {[%clk 0:00:11.6]} 33. Ke2 {[%clk
0:00:49.5]} 33... h5 {[%clk 0:00:11.6]} 34. h3 {[%clk 0:00:49.4]} 34... Ne5
{[%clk 0:00:11.8]} 35. f4 {[%clk 0:00:47.7]} 35... Nd7 {[%clk 0:00:11.9]} 36. g4
{[%clk 0:00:45.5]} 36... hxg4 {[%clk 0:00:11.5]} 37. hxg4 {[%clk 0:00:46.4]}
37... Nb6 {[%clk 0:00:11.8]} 38. g5+ {[%clk 0:00:42.4]} 38... Kg7 {[%clk
0:00:12.2]} 39. Kd2 {[%clk 0:00:42.1]} 39... Nd5 {[%clk 0:00:12.5]} 40. Rf3
{[%clk 0:00:41.6]} 40... Rh8 {[%clk 0:00:12.4]} 41. c4 {[%clk 0:00:39.1]} 41...
bxc4 {[%clk 0:00:12.4]} 42. bxc4 {[%clk 0:00:40]} 42... Nb6 {[%clk 0:00:13]} 43.
c5 {[%clk 0:00:38.1]} 43... Rh2+ {[%clk 0:00:11.4]} 44. Kd3 {[%clk 0:00:36.3]}
44... Nd5 {[%clk 0:00:11.4]} 45. f5 {[%clk 0:00:32]} 45... gxf5 {[%clk
0:00:10.1]} 46. Rxf5 {[%clk 0:00:28.8]} 46... Nb4+ {[%clk 0:00:10.2]} 47. Kc4
{[%clk 0:00:28.3]} 47... Nxa2 {[%clk 0:00:11.1]} 48. c6 {[%clk 0:00:27]} 48...
Rh8 {[%clk 0:00:06.9]} 49. Ra5 {[%clk 0:00:24.1]} 49... Nc1 {[%clk 0:00:06.8]}
50. Ra1 {[%clk 0:00:19.9]} 50... Kg6 {[%clk 0:00:02.4]} 51. Rxc1 {[%clk
0:00:20]} 51... Kxg5 {[%clk 0:00:02.7]} 52. c7 {[%clk 0:00:20.2]} 52... f5
{[%clk 0:00:01.8]} 53. Kd5 {[%clk 0:00:20.3]} 53... f4 {[%clk 0:00:01.4]} 54.
c8=Q {[%clk 0:00:19]} 1-0

[Event "Late-Titled-Tuesday-Blitz-May-07-2024"]
[Site "Chess.com"]
[Date "2024.05.07"]
[Round "3"]
[White "shirovin"]
[Black "cthulhuuu"]
[Result "1-0"]
[WhiteElo "2099"]
[BlackElo "2529"]
[TimeControl "180+1"]
[EndTime "14:29:04 PDT"]
[Termination "shirovin won on time"]

1. e4 {[%clk 0:03:00.9]} 1... d6 {[%clk 0:02:59.9]} 2. d4 {[%clk 0:02:59.8]}
2... Nf6 {[%clk 0:03:00.6]} 3. Nc3 {[%clk 0:02:59.8]} 3... c6 {[%clk 0:03:00.9]}
4. f3 {[%clk 0:02:51.9]} 4... b5 {[%clk 0:03:00]} 5. a3 {[%clk 0:02:47.5]} 5...
e5 {[%clk 0:02:59.7]} 6. Be3 {[%clk 0:02:42]} 6... Be7 {[%clk 0:03:00.2]} 7.
dxe5 {[%clk 0:02:30.4]} 7... dxe5 {[%clk 0:02:59.4]} 8. Qxd8+ {[%clk 0:02:30.6]}
8... Kxd8 {[%clk 0:02:58.7]} 9. O-O-O+ {[%clk 0:02:29.6]} 9... Kc7 {[%clk
0:02:59.2]} 10. g4 {[%clk 0:02:16.3]} 10... a5 {[%clk 0:02:56.6]} 11. Nge2
{[%clk 0:02:09]} 11... Be6 {[%clk 0:02:56]} 12. Ng3 {[%clk 0:02:06.1]} 12... g6
{[%clk 0:02:56.1]} 13. g5 {[%clk 0:01:57.5]} 13... Nfd7 {[%clk 0:02:55.8]} 14.
f4 {[%clk 0:01:50.6]} 14... b4 {[%clk 0:02:32.4]} 15. Nb1 {[%clk 0:01:40.7]}
15... Bc5 {[%clk 0:02:20.6]} 16. Bxc5 {[%clk 0:01:34.5]} 16... Nxc5 {[%clk
0:02:21.5]} 17. f5 {[%clk 0:01:23.6]} 17... Ba2 {[%clk 0:02:19.2]} 18. Nd2
{[%clk 0:01:03.4]} 18... Rd8 {[%clk 0:01:58.5]} 19. Bc4 {[%clk 0:01:02]} 19...
Rxd2 {[%clk 0:00:23.1]} 20. Bxa2 {[%clk 0:00:58.7]} 20... Rxd1+ {[%clk
0:00:22.6]} 21. Rxd1 {[%clk 0:00:56.7]} 21... b3 {[%clk 0:00:22.9]} 22. Bxb3
{[%clk 0:00:48.8]} 22... Nxb3+ {[%clk 0:00:22.7]} 23. cxb3 {[%clk 0:00:49.3]}
23... Na6 {[%clk 0:00:22.6]} 24. Rf1 {[%clk 0:00:38.6]} 24... Nc5 {[%clk
0:00:15.9]} 25. Kc2 {[%clk 0:00:36.7]} 25... Rb8 {[%clk 0:00:06.6]} 26. fxg6
{[%clk 0:00:32.9]} 26... fxg6 {[%clk 0:00:07.5]} 27. Rf3 {[%clk 0:00:26.9]}
27... Kd6 {[%clk 0:00:06.5]} 28. Rc3 {[%clk 0:00:23.9]} 28... Ne6 {[%clk
0:00:06.7]} 29. h4 {[%clk 0:00:19.9]} 29... Nd4+ {[%clk 0:00:06.7]} 30. Kd3
{[%clk 0:00:13.2]} 30... Nxb3 {[%clk 0:00:07.1]} 31. Ke3 {[%clk 0:00:10.5]}
31... Nd4 {[%clk 0:00:06.8]} 32. Ne2 {[%clk 0:00:09.7]} 32... Nxe2 {[%clk
0:00:07.1]} 33. Kxe2 {[%clk 0:00:09]} 33... Rxb2+ {[%clk 0:00:08]} 34. Ke3
{[%clk 0:00:09.2]} 34... Rh2 {[%clk 0:00:08.3]} 35. Rd3+ {[%clk 0:00:06.4]}
35... Ke7 {[%clk 0:00:05.2]} 36. Rc3 {[%clk 0:00:05.9]} 36... Rh3+ {[%clk
0:00:05.6]} 37. Kd2 {[%clk 0:00:05.1]} 37... Rxc3 {[%clk 0:00:06.5]} 38. Kxc3
{[%clk 0:00:05.1]} 38... Kd6 {[%clk 0:00:07]} 39. Kc4 {[%clk 0:00:05.3]} 39...
Kc7 {[%clk 0:00:04]} 40. Kc5 {[%clk 0:00:04.9]} 40... Kb7 {[%clk 0:00:04.4]} 41.
Kd6 {[%clk 0:00:04.6]} 41... Kb6 {[%clk 0:00:04.9]} 42. Kxe5 {[%clk 0:00:04.6]}
42... c5 {[%clk 0:00:05.4]} 43. Kd5 {[%clk 0:00:03.9]} 43... Kb5 {[%clk
0:00:05.1]} 44. e5 {[%clk 0:00:04.4]} 44... c4 {[%clk 0:00:05.6]} 45. e6 {[%clk
0:00:04.9]} 45... c3 {[%clk 0:00:05.7]} 46. e7 {[%clk 0:00:05.8]} 46... c2
{[%clk 0:00:06.1]} 47. e8=Q+ {[%clk 0:00:06.7]} 47... Kb6 {[%clk 0:00:06.6]} 48.
Qc8 {[%clk 0:00:06.2]} 48... a4 {[%clk 0:00:05.6]} 49. Qxc2 {[%clk 0:00:06.7]}
1-0